[Event "XVII Profigaia Open 2017"]
[Site "Gaia"]
[Date "2017.06.18"]
[Round "7"]
[White "Triunfante, Armando"]
[Black "Brandao, Alvaro Sousa"]
[Result "0-1"]
[ECO "B01"]
[WhiteElo "1231"]
[BlackElo "1605"]
[Annotator "NA RC"]
[PlyCount "82"]
[EventDate "2017.??.??"]
[EventType "swiss"]
[EventCountry "POR"]
[SourceTitle "playchess.com"]
[Source "ChessBase"]
[SourceQuality "1"]
[TimeControl "5400+30"]

1. e4 {[%emt 0:01:06]} d5 {[%emt 0:00:37]} 2. exd5 {[%emt 0:00:19]} Nf6 {[%emt 0:00:07]} 3. c4 {[%emt 0:05:24]} c6 {[%emt 0:00:15]} 4. dxc6 {[%emt 0:00:41]} Nxc6 {[%emt 0:00:06]} 5. Nf3 {[%emt 0:01:20]} e5 {[%emt 0:00:09]} 6. d3 {[%emt 0:01:04]} Bf5 {[%emt 0:10:08]} 7. Nh4 {[%emt 0:08:38]} Bb4+ {[%emt 0:07:25]} 8. Nc3 {[%emt 0:00:16]} Qd7 {[%emt 0:02:01]} 9. a3 {[%emt 0:06:19]} Bxc3+ {[%emt 0:05:45]} 10. bxc3 {[%emt 0:00:22]} h6 {[%emt 0:10:37]} 11. Nxf5 {[%emt 0:03:10]} Qxf5 {[%emt 0:00:03]} 12. Be2 {[%emt 0:01:00]} O-O {[%emt 0:01:58]} 13. O-O Rfd8 14. f3 {[%emt 0:07:47]} b6 {[%emt 0:04:08]} 15. Be3 {[%emt 0:19:56]} Na5 {[%emt 0:02:07]} 16. Qb1 {[%emt 0:01:22]} Rac8 {[%emt 0:04:08]} 17. a4 {[%emt 0:05:20]} Nd7 {[%emt 0:00:48]} 18. Rd1 {[%emt 0:07:01]} Nc5 {[%emt 0:03:40]} 19. Bxc5 {[%emt 0:01:07]} Rxc5 {[%emt 0:00:22]} 20. d4 {[%emt 0:05:23]} Qxb1 {[%emt 0:00:12]} 21. Raxb1 {[%emt 0:00:01]} exd4 {[%emt 0:00:41]} 22. Rxd4 {[%emt 0:02:56]} Rcc8 {[%emt 0:02:39]} 23. Rbd1 {[%emt 0:04:04]} Re8 {[%emt 0:00:41]} 24. Kf2 {[%emt 0:02:44]} Rc7 {[%emt 0:05:32]} 25. Rd8 {[%emt 0:00:30]} Kf8 {[%emt 0:00:09]} 26. Rxe8+ {[%emt 0:01:26]} Kxe8 {[%emt 0:00:11]} 27. Rd4 {[%emt 0:00:31]} Nb3 {[%emt 0:01:25]} 28. Rg4 {[%emt 0:01:59]} Kf8 {[%emt 0:00:49]} 29. Bd3 {[%emt 0:02:05]} Rd7 {[%emt 0:02:53]} 30. Ke3 {[%emt 0:01:29]} g6 {[%emt 0:02:56]} 31. Rf4 {[%emt 0:00:40]} Kg7 {[%emt 0:00:33]} 32. g4 {[%emt 0:00:49]} Nc5 {[%emt 0:01:03]} 33. Bc2 {[%emt 0:00:52]} Re7+ {[%emt 0:00:49]} 34. Kf2 {[%emt 0:00:24]} Re5 {[%emt 0:02:47]} 35. Rd4 {[%emt 0:01:44]} Ne6 {[%emt 0:01:06]} 36. Rd5 {[%emt 0:00:22]} Kf6 {[%emt 0:01:27]} 37. Rxe5 {[%emt 0:02:52]} Kxe5 {[%emt 0:00:09]} 38. Ke3 {[%emt 0:01:21]} g5 {[%emt 0:03:20]} 39. Bf5 {[%emt 0:00:30]} Nc5 40. Bc2 a5 {[%emt 0:01:00]} 41. Bb3 {[%emt 0:01:19]} Nxb3 {[%emt 0:00:13]} 0-1

[Event "XVII Profigaia Open 2017"]
[Site "Gaia"]
[Date "2017.06.18"]
[Round "7"]
[White "Duarte, Francisco"]
[Black "Pinto, Pedro Jorge de Mora"]
[Result "1-0"]
[ECO "B06"]
[WhiteElo "1154"]
[BlackElo "2038"]
[Annotator "NA"]
[PlyCount "99"]
[EventDate "2017.??.??"]
[EventType "swiss"]
[EventCountry "POR"]
[SourceTitle "playchess.com"]
[Source "ChessBase"]
[SourceQuality "1"]
[TimeControl "5400+30"]

{[%evp 28,87,-23,-27,-12,-7,-5,-5,32767,-45,0,-32,32767,32767,32767,32767,32767,32767,32767,32767,498,523,540,572,636,558,32767,517,562,32767,613,32767,659,667,652,715,825,649,910,683,878,615,819,956,890,1029,1721,1219,1253,2552,1672,1433,12837,5310,32767,5306,29996,12840,32767,32767,29993,392]} 1. d4 {[%emt 0:00:00]} g6 2. Nc3 {[%emt 0:00:20]} Bg7 {[%emt 0:00:53]} 3. e4 {[%emt 0:00:18]} d6 {[%emt 0:00:13]} 4. Nf3 {[%emt 0:00:13]} Nd7 {[%emt 0:01:37]} 5. Bd3 {[%emt 0:00:30] B06: Modern Defence} (5. Be3 a6 6. a4 b6 7. Be2 e6 8. O-O Bb7 9. d5 exd5 10. exd5 Ne7 11. Bd4 Ne5 12. Re1 O-O 13. Bxe5 dxe5 14. Bc4 {0-1 (52) Deszczynski,A (2366)-Kamsky,G (2660) Warsaw 2016}) 5... c5 {[%emt 0:00:10]} 6. d5 {[%emt 0:00:37]} Nb6 $146 {[%emt 0:00:47]} ({Predecessor:} 6... a6 7. a4 b6 8. O-O Ngf6 9. Re1 O-O 10. h3 Ne8 11. Ne2 Nc7 12. c4 e5 13. Ng3 {0-1 (47) Heinemann,D (2280)-Bangiev,A (2405) Germany 1995}) 7. Be3 {[%emt 0:00:13]} e6 {[%emt 0:00:09]} 8. Bb5+ {[%emt 0:00:28]} Bd7 {[%emt 0:00:14]} 9. Bd3 {[%emt 0:00:18]} exd5 {[%emt 0:00:32]} 10. Nxd5 {[%emt 0:02:26]} Nxd5 {[%emt 0:00:20]} 11. exd5 {[%emt 0:00:12]} Nf6 {[%emt 0:00:43]} 12. Bc4 {[%emt 0:00:30]} O-O {[%emt 0:00:41]} 13. O-O {[%emt 0:00:08]} Qb6 {[%emt 0:00:32]} 14. Rb1 {[%emt 0:00:22]} Bb5 {[%emt 0:00:41]} 15. b3 {[%emt 0:00:23]} Bxc4 {[%emt 0:00:17]} 16. bxc4 {[%emt 0:00:05]} Qa6 {[%emt 0:00:11]} 17. Qd3 {[%emt 0:00:33]} Nd7 {[%emt 0:01:10]} 18. c3 {[%emt 0:00:24]} (18. Bf4 $11) 18... b6 {[%emt 0:00:46]} 19. Rfe1 {[%emt 0:00:22]} Qxa2 {[%emt 0:00:36]} 20. Ra1 {[%emt 0:00:51]} Qb2 {[%emt 0:00:08]} 21. Bd2 {[%emt 0:00:05]} Rfe8 {[%emt 0:05:21]} 22. Reb1 {[%emt 0:00:07]} Qxa1 {[%emt 0:00:11]} 23. Rxa1 {[%emt 0:00:06]} a5 {[%emt 0:00:27]} 24. h3 {[%emt 0:00:05]} Ne5 {[%emt 0:00:56]} 25. Nxe5 {[%emt 0:00:08]} Rxe5 {[%emt 0:00:08]} 26. f4 {[%emt 0:00:08]} Re7 {[%emt 0:00:23]} 27. Ra4 {[%emt 0:00:12]} f5 {[%emt 0:00:45]} 28. Qb1 {[%emt 0:00:55]} Rb8 {[%emt 0:00:42]} 29. Rxa5 {[%emt 0:00:05]} Rbb7 {[%emt 0:00:30]} 30. Rb5 {[%emt 0:00:15]} Re2 {[%emt 0:00:21]} 31. Be1 {[%emt 0:00:27]} Re4 {[%emt 0:00:17]} 32. Kh2 {[%emt 0:02:44]} Rxf4 {[%emt 0:02:08]} 33. Bd2 {[%emt 0:01:24]} Rf2 {[%emt 0:01:21]} 34. Be3 {[%emt 0:00:41]} Re2 {[%emt 0:00:11]} 35. Bf4 {[%emt 0:00:59]} Re4 {[%emt 0:00:54]} 36. Bxd6 {[%emt 0:00:05]} Rxc4 {[%emt 0:00:04]} 37. Rxc5 {[%emt 0:00:15]} Be5+ {[%emt 0:01:42]} 38. Bxe5 {[%emt 0:00:22]} Rxc5 {[%emt 0:00:05]} 39. c4 {[%emt 0:00:55]} Rxc4 {[%emt 0:00:19]} 40. Qb5 {[%emt 0:00:03]} Rc8 {[%emt 0:00:24]} 41. d6 {[%emt 0:00:09]} Kf7 {[%emt 0:00:49]} 42. Qa6 {[%emt 0:00:18]} (42. Qd5+ $142 Kf8 43. Qxb7 h6 44. Qg7+ Ke8 45. Qe7#) 42... Rd7 {[%emt 0:01:00]} 43. Qxc8 {[%emt 0:00:06]} Ke6 {[%emt 0:00:11]} 44. Qe8+ $18 {[%emt 0:00:43] mates} (44. Qc4+ $2) 44... Kd5 45. Qxd7 Kxe5 46. Qe7+ Kd4 47. d7 f4 48. d8=Q+ Kc3 49. Qa3+ Kc4 50. Qdd3# 1-0

[Event "XVII Profigaia Open 2017"]
[Site "Gaia"]
[Date "2017.06.18"]
[Round "7"]
[White "Oliveira, Afonso Duarte Q"]
[Black "Coimbra, Joao Marcial Ferrei"]
[Result "0-1"]
[ECO "B10"]
[WhiteElo "1104"]
[BlackElo "1402"]
[Annotator "NA"]
[PlyCount "134"]
[EventDate "2017.??.??"]
[EventType "swiss"]
[EventCountry "POR"]
[SourceTitle "playchess.com"]
[Source "ChessBase"]
[SourceQuality "1"]
[TimeControl "5400+30"]

1. e4 {[%emt 0:00:00]} c6 {[%emt 0:00:19]} 2. Nf3 {[%emt 0:00:00]} d6 {[%emt 0:00:15]} 3. d4 {[%emt 0:00:02]} Bg4 {[%emt 0:00:21]} 4. Nbd2 {[%emt 0:00:17]} Qb6 {[%emt 0:00:17]} 5. c3 {[%emt 0:00:15]} h6 {[%emt 0:00:42]} 6. h3 {[%emt 0:00:12]} Bh5 {[%emt 0:00:13]} 7. Be2 {[%emt 0:00:12]} e6 {[%emt 0:00:21]} 8. Nc4 {[%emt 0:01:58]} Qc7 {[%emt 0:00:17]} 9. Bf4 {[%emt 0:00:46]} b5 {[%emt 0:00:57]} 10. Ne3 {[%emt 0:01:18]} Bg6 {[%emt 0:01:12]} 11. e5 {[%emt 0:00:18]} d5 {[%emt 0:00:54]} 12. Nh4 {[%emt 0:00:13]} Ne7 {[%emt 0:00:32]} 13. Nxg6 {[%emt 0:00:30]} Nxg6 {[%emt 0:00:08]} 14. Bg3 {[%emt 0:00:59]} Be7 {[%emt 0:00:36]} 15. f3 {[%emt 0:02:19]} Qd8 {[%emt 0:00:52]} 16. O-O {[%emt 0:10:36]} Nd7 {[%emt 0:00:52]} 17. Qe1 {[%emt 0:00:36]} Bh4 {[%emt 0:00:26]} 18. Bxh4 {[%emt 0:00:54]} Qxh4 {[%emt 0:00:23]} 19. Qxh4 {[%emt 0:00:20]} Nxh4 {[%emt 0:00:06]} 20. b3 {[%emt 0:00:10]} Ng6 {[%emt 0:02:28]} 21. c4 Nf4 {[%emt 0:00:40]} 22. Rfe1 {[%emt 0:02:54]} b4 {[%emt 0:02:00]} 23. c5 {[%emt 0:01:12]} Ke7 {[%emt 0:00:53]} 24. a3 {[%emt 0:00:20]} Rhb8 {[%emt 0:00:10]} 25. Nc2 {[%emt 0:00:24]} bxa3 {[%emt 0:00:27]} 26. Rxa3 {[%emt 0:00:12]} a5 {[%emt 0:00:38]} 27. b4 {[%emt 0:00:27]} Nxe2+ {[%emt 0:03:21]} 28. Rxe2 {[%emt 0:00:44]} Rb5 {[%emt 0:00:28]} 29. bxa5 {[%emt 0:00:31]} Raxa5 {[%emt 0:00:48]} 30. Rxa5 {[%emt 0:00:17]} Rxa5 {[%emt 0:00:01]} 31. Nb4 {[%emt 0:00:13]} Nb8 {[%emt 0:01:14]} 32. Ra2 {[%emt 0:00:30]} Rxa2 {[%emt 0:01:22]} 33. Nxa2 {[%emt 0:00:11]} Na6 {[%emt 0:00:09]} 34. Kf2 {[%emt 0:00:15]} Kd7 {[%emt 0:01:16]} 35. Ke3 {[%emt 0:00:33]} Nc7 {[%emt 0:00:53]} 36. Nb4 {[%emt 0:02:37]} Nb5 {[%emt 0:00:39]} 37. g4 {[%emt 0:00:22]} Na3 {[%emt 0:00:30]} 38. Kf4 {[%emt 0:00:19]} Nc4 {[%emt 0:00:26]} 39. g5 {[%emt 0:00:33]} hxg5+ {[%emt 0:01:14]} 40. Kxg5 {[%emt 0:00:11]} Ne3 {[%emt 0:00:27]} 41. h4 {[%emt 0:01:01]} Nf5 {[%emt 0:00:06]} 42. Nc2 {[%emt 0:00:26]} Kc7 {[%emt 0:01:07]} 43. Kg4 {[%emt 0:00:22]} Kb7 {[%emt 0:00:17]} 44. h5 {[%emt 0:00:38]} Ka6 {[%emt 0:00:11]} 45. Kf4 {[%emt 0:00:23]} Kb5 {[%emt 0:00:39]} 46. Na3+ {[%emt 0:01:45]} Kb4 {[%emt 0:00:15]} 47. Nc2+ {[%emt 0:00:19]} Kc3 {[%emt 0:00:20]} 48. Ne3 {[%emt 0:00:37]} Nh6 {[%emt 0:01:12]} 49. Ng4 {[%emt 0:00:21]} Kxd4 {[%emt 0:00:20]} 50. Nxh6 {[%emt 0:00:11]} gxh6 {[%emt 0:00:08]} 51. Kg4 {[%emt 0:00:10]} Kxe5 {[%emt 0:00:13]} 52. f4+ {[%emt 0:00:15]} Kf6 {[%emt 0:00:28]} 53. Kf3 {[%emt 0:00:48]} Kf5 {[%emt 0:00:15]} 54. Kg3 {[%emt 0:00:20]} Ke4 {[%emt 0:00:38]} 55. Kg4 {[%emt 0:00:16]} f5+ {[%emt 0:00:12]} 56. Kg3 {[%emt 0:00:09]} Kd4 {[%emt 0:00:34]} 57. Kf3 {[%emt 0:00:15]} Kxc5 {[%emt 0:00:09]} 58. Ke3 {[%emt 0:00:09]} Kc4 {[%emt 0:00:24]} 59. Ke2 {[%emt 0:00:14]} Kc3 {[%emt 0:00:19]} 60. Kd1 {[%emt 0:02:41]} d4 {[%emt 0:00:12]} 61. Ke2 {[%emt 0:00:08]} Kc2 {[%emt 0:00:33]} 62. Ke1 {[%emt 0:00:12]} c5 {[%emt 0:00:14]} 63. Ke2 {[%emt 0:00:13]} c4 {[%emt 0:00:17]} 64. Ke1 {[%emt 0:00:16]} c3 {[%emt 0:00:12]} 65. Ke2 {[%emt 0:00:07]} d3+ {[%emt 0:00:16]} 66. Ke1 {[%emt 0:00:11]} d2+ {[%emt 0:00:14]} 67. Ke2 {[%emt 0:00:07]} d1=Q+ 0-1